Workbook

Sheet Pflux
A1: Parameters | B1: Units | C1: Values | D1: Notes
A2: Default basalt P concentration | B2: ppm | C2: 802 | D2: Only for LIPs without geochemistry. 802 for MORB (Gale et al., 2013). | I2: Inputs | J2: Outputs | K2: No geochemical data
A3: Flood basalt thickness | B3: km | C3: 3 | D3: 1-4 km (see text for rational)
A4: Flood basalt area (multiple of dike swarm area) | C4: 2 | D4: ~2 based on Abbott and Isley (2002).
A5: Basalt density | B5: g/cm3 | C5: 2.75 | D5: ~2.75
A6: Chemical weathering rate (basalt) | B6: g/km2/yr | C6: 40000000 | D6: 4 x 10^7 based on Millot et al. (2002). | I6: P unit converter
A7: Physical erosion rate (basalt) | B7: g/km2/yr | C7: 40000000 | D7: Can be much higher than chemical weathering. See text for rational. | I7: wt% to ppm | J7: 0 | K7: =J7*10000*0.436 -> 0
A8: Bioavailable fraction of weathered P | C8: 0.4 | D8: roughly half (Compton, 2000). | I8: ppm to wt% | J8: 0 | K8: =J8/10000/0.436 -> 0
A9: Baseline weathering Proterozoic P flux | B9: molP/yr | C9: 1500000000 | D9: 1.5 x 10^9. See text for rational.
A11: Large igneous province (LIP) | C11: Antrim | D11: Wichita Mountains | E11: Late Central-Iapetus | F11: Middle Central-Iapetus | G11: Early Central-Iapetus | H11: Baltoscandian | I11: Volyn | J11: Gannakouriep | K11: Franklin | L11: Muggamurra | M11: Mundine Well | N11: Gunbarrel | O11: Willouran-Gairdner | P11: Bukoban | Q11: Bir El Khzaim | R11: Glen Doe | S11: TOTAL
A12: Age | C12: 0.51 | D12: 0.53 | E12: 0.575 | F12: 0.592 | G12: 0.617 | H12: 0.619 | I12: 0.65 | J12: 0.72 | K12: 0.72 | L12: 0.75 | M12: 0.755 | N12: 0.78 | O12: 0.8 | P12: 0.83 | Q12: 0.85 | R12: 0.873
A13: Dike swarm area | B13: 1000 km^2 | C13: 450 | D13: 30 | E13: 7 | F13: 140 | G13: 105 | H13: 10 | I13: 140 | J13: 30 | K13: 1100 | L13: 140 | M13: 360 | N13: 200 | O13: 210 | P13: 300 | Q13: 520 | R13: 2 | S13: =SUM(C13:R13)*1000 -> 3744000
A14: LIP volume | B14: 1000 km^3 | C14: =C13*$C$3*$C$4 -> 2700 | D14: =D13*$C$3*$C$4 -> 180 | E14: 42 | F14: 840 | G14: 630 | H14: 60 | I14: 840 | J14: 180 | K14: 6600 | L14: 840 | M14: 2160 | N14: 1200 | O14: 1260 | P14: 1800 | Q14: 3120 | R14: 12 | S14: =SUM(C14:R14) -> 22464
A15: Median P (Data Supplement 1) | B15: ppm | C15: =$C$2 -> 802 | D15: =$C$2 -> 802 | E15: =$C$2 -> 802 | F15: 802 | G15: 802 | H15: 802 | I15: 802 | J15: 802 | K15: 741 | L15: =$C$2 -> 802 | M15: 872 | N15: 2254 | O15: 828 | P15: =$C$2 -> 802 | Q15: =$C$2 -> 802 | R15: 1264
A16: P content | B16: 10^15 mol | C16: =(($C$5*10^15)*(C14*1000)*(C15/1000000))/30.973762/10^15 -> 192.2546573 | D16: =(($C$5*10^15)*(D14*1000)*(D15/1000000))/30.973762/10^15 -> 12.81697716 | E16: =(($C$5*10^15)*(E14*1000)*(E15/1000000))/30.973762/10^15 -> 2.990628003 | F16: 59.81256006 | G16: 44.85942005 | H16: 4.272325719 | I16: 59.81256006 | J16: 12.81697716 | K16: 434.211059 | L16: 59.81256006 | M16: 167.2279912 | N16: =(($C$5*10^15)*(N14*1000)*(N15/1000000))/30.973762/10^15 -> 240.1451913 | O16: 92.62743092 | P16: 128.1697716 | Q16: 222.1609374 | R16: 1.346688207 | S16: =SUM(C16:R16) -> 1735.337735
A17: Estimated reactive P | B17: mol | C17: =(C16*10^15)*($C$6/($C$6+$C$7))*$C$8 -> 3.845093147e+16 | D17: =(D16*10^15)*($C$6/($C$6+$C$7))*$C$8 -> 2.563395431e+15 | E17: 5.981256006e+14 | F17: 1.196251201e+16 | G17: 8971884009439989 | H17: 8.544651438e+14 | I17: 1.196251201e+16 | J17: 2.563395431e+15 | K17: 8.68422118e+16 | L17: 1.196251201e+16 | M17: 3.344559825e+16 | N17: 4.802903826e+16 | O17: 1.852548618e+16 | P17: 2.563395431e+16 | Q17: 4.443218748e+16 | R17: 2.693376413e+14 | S17: =SUM(C17:R17) -> 3.47067547e+17
A18: Duration of flood basalt weathering | B18: Myr | C18: =(C14*10^15*$C$5)/(($C$6+$C$7)*C13*$C$4*10^6) -> 103.125 | D18: =(D14*10^15*$C$5)/(($C$6+$C$7)*D13*$C$4*10^6) -> 103.125 | E18: 103.125 | F18: 103.125 | G18: 103.125 | H18: 103.125 | I18: 103.125 | J18: 103.125 | K18: 103.125 | L18: 103.125 | M18: 103.125 | N18: 103.125 | O18: 103.125 | P18: 103.125 | Q18: 103.125 | R18: 103.125
A19: P weathering | B19: mol/yr | C19: =(C13*$C$4*1000*$C$6)*(C15/10^6)/30.97 -> 932257022.9 | D19: =(D13*$C$4*1000*$C$6)*(D15/10^6)/30.97 -> 62150468.2 | E19: 14501775.91 | F19: 290035518.2 | G19: 217526638.7 | H19: 20716822.73 | I19: 290035518.2 | J19: 62150468.2 | K19: 2105521472 | L19: 290035518.2 | M19: 810900871.8 | N19: 1164481757 | O19: 449157249 | P19: 621504682 | Q19: 1077274782 | R19: 6530190.507
A20: Reactive P flux during weathering | B20: mol/yr | C20: =(C19*$C$8) -> 372902809.2 | D20: =(D19*$C$8) -> 24860187.28 | E20: 5800710.365 | F20: 116014207.3 | G20: 87010655.47 | H20: 8286729.093 | I20: 116014207.3 | J20: 24860187.28 | K20: 842208589 | L20: 116014207.3 | M20: 324360348.7 | N20: 465792702.6 | O20: 179662899.6 | P20: 248601872.8 | Q20: 430909912.8 | R20: 2612076.203
A22: Neoproterozoic Model
A23: Timestep (Ma) | C23: Reactive P flux from each LIP at each timestep (mol/yr) | S23: Cumulative reactive P flux per time step | T23: Normalized to baseline
S24: (mol/yr)
A25: 900 | C25: =IF($A25<=(C$12*1000), IF($A25>=(C$12*1000-C$18),C$20,0),0) -> 0 | D25: 0 | E25: 0 | F25: 0 | G25: 0 | H25: 0 | I25: 0 | J25: 0 | K25: 0 | L25: 0 | M25: 0 | N25: 0 | O25: 0 | P25: 0 | Q25: 0 | R25: 0 | S25: =SUM(C25:R25) -> 0 | T25: =S25/$C$9 -> 0
A26: 898 | C26: 0 | D26: 0 | E26: 0 | F26: 0 | G26: 0 | H26: 0 | I26: 0 | J26: 0 | K26: 0 | L26: 0 | M26: 0 | N26: 0 | O26: 0 | P26: 0 | Q26: 0 | R26: 0 | S26: 0 | T26: =S26/$C$9 -> 0
A27: 896 | C27: 0 | D27: 0 | E27: 0 | F27: 0 | G27: 0 | H27: 0 | I27: 0 | J27: 0 | K27: 0 | L27: 0 | M27: 0 | N27: 0 | O27: 0 | P27: 0 | Q27: 0 | R27: 0 | S27: 0 | T27: 0
A28: 894 | C28: 0 | D28: 0 | E28: 0 | F28: 0 | G28: 0 | H28: 0 | I28: 0 | J28: 0 | K28: 0 | L28: 0 | M28: 0 | N28: 0 | O28: 0 | P28: 0 | Q28: 0 | R28: 0 | S28: 0 | T28: 0
A29: 892 | C29: 0 | D29: 0 | E29: 0 | F29: 0 | G29: 0 | H29: 0 | I29: 0 | J29: 0 | K29: 0 | L29: 0 | M29: 0 | N29: 0 | O29: 0 | P29: 0 | Q29: 0 | R29: 0 | S29: 0 | T29: 0
A30: 890 | C30: 0 | D30: 0 | E30: 0 | F30: 0 | G30: 0 | H30: 0 | I30: 0 | J30: 0 | K30: 0 | L30: 0 | M30: 0 | N30: 0 | O30: 0 | P30: 0 | Q30: 0 | R30: 0 | S30: 0 | T30: 0
A31: 888 | C31: 0 | D31: 0 | E31: 0 | F31: 0 | G31: 0 | H31: 0 | I31: 0 | J31: 0 | K31: 0 | L31: 0 | M31: 0 | N31: 0 | O31: 0 | P31: 0 | Q31: 0 | R31: 0 | S31: 0 | T31: 0
A32: 886 | C32: 0 | D32: 0 | E32: 0 | F32: 0 | G32: 0 | H32: 0 | I32: 0 | J32: 0 | K32: 0 | L32: 0 | M32: 0 | N32: 0 | O32: 0 | P32: 0 | Q32: 0 | R32: 0 | S32: 0 | T32: 0
A33: 884 | C33: 0 | D33: 0 | E33: 0 | F33: 0 | G33: 0 | H33: 0 | I33: 0 | J33: 0 | K33: 0 | L33: 0 | M33: 0 | N33: 0 | O33: 0 | P33: 0 | Q33: 0 | R33: 0 | S33: 0 | T33: 0
A34: 882 | C34: 0 | D34: 0 | E34: 0 | F34: 0 | G34: 0 | H34: 0 | I34: 0 | J34: 0 | K34: 0 | L34: 0 | M34: 0 | N34: 0 | O34: 0 | P34: 0 | Q34: 0 | R34: 0 | S34: 0 | T34: 0
A35: 880 | C35: =IF($A35<=(C$12*1000), IF($A35>=(C$12*1000-C$18),C$20,0),0) -> 0 | D35: 0 | E35: 0 | F35: 0 | G35: 0 | H35: 0 | I35: 0 | J35: 0 | K35: 0 | L35: 0 | M35: 0 | N35: 0 | O35: 0 | P35: 0 | Q35: 0 | R35: 0 | S35: 0 | T35: 0
A36: 878 | C36: 0 | D36: 0 | E36: 0 | F36: 0 | G36: 0 | H36: 0 | I36: 0 | J36: 0 | K36: 0 | L36: 0 | M36: 0 | N36: 0 | O36: 0 | P36: 0 | Q36: 0 | R36: 0 | S36: 0 | T36: 0
A37: 876 | C37: 0 | D37: 0 | E37: 0 | F37: 0 | G37: 0 | H37: 0 | I37: 0 | J37: 0 | K37: 0 | L37: 0 | M37: 0 | N37: 0 | O37: 0 | P37: 0 | Q37: 0 | R37: 0 | S37: 0 | T37: 0
A38: 874 | C38: 0 | D38: 0 | E38: 0 | F38: 0 | G38: 0 | H38: 0 | I38: 0 | J38: 0 | K38: 0 | L38: 0 | M38: 0 | N38: 0 | O38: 0 | P38: 0 | Q38: 0 | R38: 0 | S38: 0 | T38: 0
A39: 872 | C39: 0 | D39: 0 | E39: 0 | F39: 0 | G39: 0 | H39: 0 | I39: 0 | J39: 0 | K39: 0 | L39: 0 | M39: 0 | N39: 0 | O39: 0 | P39: 0 | Q39: 0 | R39: 2612076.203 | S39: 2612076.203 | T39: 0.001741384135
A40: 870 | C40: 0 | D40: 0 | E40: 0 | F40: 0 | G40: 0 | H40: 0 | I40: 0 | J40: 0 | K40: 0 | L40: 0 | M40: 0 | N40: 0 | O40: 0 | P40: 0 | Q40: 0 | R40: 2612076.203 | S40: 2612076.203 | T40: 0.001741384135
A41: 868 | C41: 0 | D41: 0 | E41: 0 | F41: 0 | G41: 0 | H41: 0 | I41: 0 | J41: 0 | K41: 0 | L41: 0 | M41: 0 | N41: 0 | O41: 0 | P41: 0 | Q41: 0 | R41: 2612076.203 | S41: 2612076.203 | T41: 0.001741384135
A42: 866 | C42: 0 | D42: 0 | E42: 0 | F42: 0 | G42: 0 | H42: 0 | I42: 0 | J42: 0 | K42: 0 | L42: 0 | M42: 0 | N42: 0 | O42: 0 | P42: 0 | Q42: 0 | R42: 2612076.203 | S42: 2612076.203 | T42: 0.001741384135
A43: 864 | C43: 0 | D43: 0 | E43: 0 | F43: 0 | G43: 0 | H43: 0 | I43: 0 | J43: 0 | K43: 0 | L43: 0 | M43: 0 | N43: 0 | O43: 0 | P43: 0 | Q43: 0 | R43: 2612076.203 | S43: 2612076.203 | T43: 0.001741384135
A44: 862 | C44: 0 | D44: 0 | E44: 0 | F44: 0 | G44: 0 | H44: 0 | I44: 0 | J44: 0 | K44: 0 | L44: 0 | M44: 0 | N44: 0 | O44: 0 | P44: 0 | Q44: 0 | R44: 2612076.203 | S44: 2612076.203 | T44: 0.001741384135
A45: 860 | C45: =IF($A45<=(C$12*1000), IF($A45>=(C$12*1000-C$18),C$20,0),0) -> 0 | D45: 0 | E45: 0 | F45: 0 | G45: 0 | H45: 0 | I45: 0 | J45: 0 | K45: 0 | L45: 0 | M45: 0 | N45: 0 | O45: 0 | P45: 0 | Q45: 0 | R45: 2612076.203 | S45: 2612076.203 | T45: 0.001741384135
A46: 858 | C46: 0 | D46: 0 | E46: 0 | F46: 0 | G46: 0 | H46: 0 | I46: 0 | J46: 0 | K46: 0 | L46: 0 | M46: 0 | N46: 0 | O46: 0 | P46: 0 | Q46: 0 | R46: 2612076.203 | S46: 2612076.203 | T46: 0.001741384135
A47: 856 | C47: 0 | D47: 0 | E47: 0 | F47: 0 | G47: 0 | H47: 0 | I47: 0 | J47: 0 | K47: 0 | L47: 0 | M47: 0 | N47: 0 | O47: 0 | P47: 0 | Q47: 0 | R47: 2612076.203 | S47: 2612076.203 | T47: 0.001741384135
A48: 854 | C48: 0 | D48: 0 | E48: 0 | F48: 0 | G48: 0 | H48: 0 | I48: 0 | J48: 0 | K48: 0 | L48: 0 | M48: 0 | N48: 0 | O48: 0 | P48: 0 | Q48: 0 | R48: 2612076.203 | S48: 2612076.203 | T48: 0.001741384135
A49: 852 | C49: 0 | D49: 0 | E49: 0 | F49: 0 | G49: 0 | H49: 0 | I49: 0 | J49: 0 | K49: 0 | L49: 0 | M49: 0 | N49: 0 | O49: 0 | P49: 0 | Q49: 0 | R49: 2612076.203 | S49: 2612076.203 | T49: 0.001741384135
A50: 850 | C50: 0 | D50: 0 | E50: 0 | F50: 0 | G50: 0 | H50: 0 | I50: 0 | J50: 0 | K50: 0 | L50: 0 | M50: 0 | N50: 0 | O50: 0 | P50: 0 | Q50: 430909912.8 | R50: 2612076.203 | S50: 433521989 | T50: 0.2890146593
A51: 848 | C51: 0 | D51: 0 | E51: 0 | F51: 0 | G51: 0 | H51: 0 | I51: 0 | J51: 0 | K51: 0 | L51: 0 | M51: 0 | N51: 0 | O51: 0 | P51: 0 | Q51: 430909912.8 | R51: 2612076.203 | S51: 433521989 | T51: 0.2890146593
A52: 846 | C52: 0 | D52: 0 | E52: 0 | F52: 0 | G52: 0 | H52: 0 | I52: 0 | J52: 0 | K52: 0 | L52: 0 | M52: 0 | N52: 0 | O52: 0 | P52: 0 | Q52: 430909912.8 | R52: 2612076.203 | S52: 433521989 | T52: 0.2890146593
A53: 844 | C53: 0 | D53: 0 | E53: 0 | F53: 0 | G53: 0 | H53: 0 | I53: 0 | J53: 0 | K53: 0 | L53: 0 | M53: 0 | N53: 0 | O53: 0 | P53: 0 | Q53: 430909912.8 | R53: 2612076.203 | S53: 433521989 | T53: 0.2890146593
A54: 842 | C54: 0 | D54: 0 | E54: 0 | F54: 0 | G54: 0 | H54: 0 | I54: 0 | J54: 0 | K54: 0 | L54: 0 | M54: 0 | N54: 0 | O54: 0 | P54: 0 | Q54: 430909912.8 | R54: 2612076.203 | S54: 433521989 | T54: 0.2890146593
A55: 840 | C55: =IF($A55<=(C$12*1000), IF($A55>=(C$12*1000-C$18),C$20,0),0) -> 0 | D55: 0 | E55: 0 | F55: 0 | G55: 0 | H55: 0 | I55: 0 | J55: 0 | K55: 0 | L55: 0 | M55: 0 | N55: 0 | O55: 0 | P55: 0 | Q55: 430909912.8 | R55: 2612076.203 | S55: 433521989 | T55: 0.2890146593
A56: 838 | C56: 0 | D56: 0 | E56: 0 | F56: 0 | G56: 0 | H56: 0 | I56: 0 | J56: 0 | K56: 0 | L56: 0 | M56: 0 | N56: 0 | O56: 0 | P56: 0 | Q56: 430909912.8 | R56: 2612076.203 | S56: 433521989 | T56: 0.2890146593
A57: 836 | C57: 0 | D57: 0 | E57: 0 | F57: 0 | G57: 0 | H57: 0 | I57: 0 | J57: 0 | K57: 0 | L57: 0 | M57: 0 | N57: 0 | O57: 0 | P57: 0 | Q57: 430909912.8 | R57: 2612076.203 | S57: 433521989 | T57: 0.2890146593
A58: 834 | C58: 0 | D58: 0 | E58: 0 | F58: 0 | G58: 0 | H58: 0 | I58: 0 | J58: 0 | K58: 0 | L58: 0 | M58: 0 | N58: 0 | O58: 0 | P58: 0 | Q58: 430909912.8 | R58: 2612076.203 | S58: 433521989 | T58: 0.2890146593
A59: 832 | C59: 0 | D59: 0 | E59: 0 | F59: 0 | G59: 0 | H59: 0 | I59: 0 | J59: 0 | K59: 0 | L59: 0 | M59: 0 | N59: 0 | O59: 0 | P59: 0 | Q59: 430909912.8 | R59: 2612076.203 | S59: 433521989 | T59: 0.2890146593
A60: 830 | C60: 0 | D60: 0 | E60: 0 | F60: 0 | G60: 0 | H60: 0 | I60: 0 | J60: 0 | K60: 0 | L60: 0 | M60: 0 | N60: 0 | O60: 0 | P60: 248601872.8 | Q60: 430909912.8 | R60: 2612076.203 | S60: 682123861.8 | T60: 0.4547492412
A61: 828 | C61: 0 | D61: 0 | E61: 0 | F61: 0 | G61: 0 | H61: 0 | I61: 0 | J61: 0 | K61: 0 | L61: 0 | M61: 0 | N61: 0 | O61: 0 | P61: 248601872.8 | Q61: 430909912.8 | R61: 2612076.203 | S61: 682123861.8 | T61: 0.4547492412
A62: 826 | C62: 0 | D62: 0 | E62: 0 | F62: 0 | G62: 0 | H62: 0 | I62: 0 | J62: 0 | K62: 0 | L62: 0 | M62: 0 | N62: 0 | O62: 0 | P62: 248601872.8 | Q62: 430909912.8 | R62: 2612076.203 | S62: 682123861.8 | T62: 0.4547492412
A63: 824 | C63: 0 | D63: 0 | E63: 0 | F63: 0 | G63: 0 | H63: 0 | I63: 0 | J63: 0 | K63: 0 | L63: 0 | M63: 0 | N63: 0 | O63: 0 | P63: 248601872.8 | Q63: 430909912.8 | R63: 2612076.203 | S63: 682123861.8 | T63: 0.4547492412
A64: 822 | C64: 0 | D64: 0 | E64: 0 | F64: 0 | G64: 0 | H64: 0 | I64: 0 | J64: 0 | K64: 0 | L64: 0 | M64: 0 | N64: 0 | O64: 0 | P64: 248601872.8 | Q64: 430909912.8 | R64: 2612076.203 | S64: 682123861.8 | T64: 0.4547492412
A65: 820 | C65: =IF($A65<=(C$12*1000), IF($A65>=(C$12*1000-C$18),C$20,0),0) -> 0 | D65: 0 | E65: 0 | F65: 0 | G65: 0 | H65: 0 | I65: 0 | J65: 0 | K65: 0 | L65: 0 | M65: 0 | N65: 0 | O65: 0 | P65: 248601872.8 | Q65: 430909912.8 | R65: 2612076.203 | S65: 682123861.8 | T65: 0.4547492412
A66: 818 | C66: 0 | D66: 0 | E66: 0 | F66: 0 | G66: 0 | H66: 0 | I66: 0 | J66: 0 | K66: 0 | L66: 0 | M66: 0 | N66: 0 | O66: 0 | P66: 248601872.8 | Q66: 430909912.8 | R66: 2612076.203 | S66: 682123861.8 | T66: 0.4547492412
A67: 816 | C67: 0 | D67: 0 | E67: 0 | F67: 0 | G67: 0 | H67: 0 | I67: 0 | J67: 0 | K67: 0 | L67: 0 | M67: 0 | N67: 0 | O67: 0 | P67: 248601872.8 | Q67: 430909912.8 | R67: 2612076.203 | S67: 682123861.8 | T67: 0.4547492412
A68: 814 | C68: 0 | D68: 0 | E68: 0 | F68: 0 | G68: 0 | H68: 0 | I68: 0 | J68: 0 | K68: 0 | L68: 0 | M68: 0 | N68: 0 | O68: 0 | P68: 248601872.8 | Q68: 430909912.8 | R68: 2612076.203 | S68: 682123861.8 | T68: 0.4547492412
A69: 812 | C69: 0 | D69: 0 | E69: 0 | F69: 0 | G69: 0 | H69: 0 | I69: 0 | J69: 0 | K69: 0 | L69: 0 | M69: 0 | N69: 0 | O69: 0 | P69: 248601872.8 | Q69: 430909912.8 | R69: 2612076.203 | S69: 682123861.8 | T69: 0.4547492412
A70: 810 | C70: 0 | D70: 0 | E70: 0 | F70: 0 | G70: 0 | H70: 0 | I70: 0 | J70: 0 | K70: 0 | L70: 0 | M70: 0 | N70: 0 | O70: 0 | P70: 248601872.8 | Q70: 430909912.8 | R70: 2612076.203 | S70: 682123861.8 | T70: 0.4547492412
A71: 808 | C71: 0 | D71: 0 | E71: 0 | F71: 0 | G71: 0 | H71: 0 | I71: 0 | J71: 0 | K71: 0 | L71: 0 | M71: 0 | N71: 0 | O71: 0 | P71: 248601872.8 | Q71: 430909912.8 | R71: 2612076.203 | S71: 682123861.8 | T71: 0.4547492412
A72: 806 | C72: 0 | D72: 0 | E72: 0 | F72: 0 | G72: 0 | H72: 0 | I72: 0 | J72: 0 | K72: 0 | L72: 0 | M72: 0 | N72: 0 | O72: 0 | P72: 248601872.8 | Q72: 430909912.8 | R72: 2612076.203 | S72: 682123861.8 | T72: 0.4547492412
A73: 804 | C73: 0 | D73: 0 | E73: 0 | F73: 0 | G73: 0 | H73: 0 | I73: 0 | J73: 0 | K73: 0 | L73: 0 | M73: 0 | N73: 0 | O73: 0 | P73: 248601872.8 | Q73: 430909912.8 | R73: 2612076.203 | S73: 682123861.8 | T73: 0.4547492412
A74: 802 | C74: 0 | D74: 0 | E74: 0 | F74: 0 | G74: 0 | H74: 0 | I74: 0 | J74: 0 | K74: 0 | L74: 0 | M74: 0 | N74: 0 | O74: 0 | P74: 248601872.8 | Q74: 430909912.8 | R74: 2612076.203 | S74: 682123861.8 | T74: 0.4547492412
A75: 800 | C75: =IF($A75<=(C$12*1000), IF($A75>=(C$12*1000-C$18),C$20,0),0) -> 0 | D75: 0 | E75: 0 | F75: 0 | G75: 0 | H75: 0 | I75: 0 | J75: 0 | K75: 0 | L75: 0 | M75: 0 | N75: 0 | O75: 179662899.6 | P75: 248601872.8 | Q75: 430909912.8 | R75: 2612076.203 | S75: 861786761.4 | T75: 0.5745245076
A76: 798 | C76: 0 | D76: 0 | E76: 0 | F76: 0 | G76: 0 | H76: 0 | I76: 0 | J76: 0 | K76: 0 | L76: 0 | M76: 0 | N76: 0 | O76: 179662899.6 | P76: 248601872.8 | Q76: 430909912.8 | R76: 2612076.203 | S76: 861786761.4 | T76: 0.5745245076
A77: 796 | C77: 0 | D77: 0 | E77: 0 | F77: 0 | G77: 0 | H77: 0 | I77: 0 | J77: 0 | K77: 0 | L77: 0 | M77: 0 | N77: 0 | O77: 179662899.6 | P77: 248601872.8 | Q77: 430909912.8 | R77: 2612076.203 | S77: 861786761.4 | T77: 0.5745245076
A78: 794 | C78: 0 | D78: 0 | E78: 0 | F78: 0 | G78: 0 | H78: 0 | I78: 0 | J78: 0 | K78: 0 | L78: 0 | M78: 0 | N78: 0 | O78: 179662899.6 | P78: 248601872.8 | Q78: 430909912.8 | R78: 2612076.203 | S78: 861786761.4 | T78: 0.5745245076
A79: 792 | C79: 0 | D79: 0 | E79: 0 | F79: 0 | G79: 0 | H79: 0 | I79: 0 | J79: 0 | K79: 0 | L79: 0 | M79: 0 | N79: 0 | O79: 179662899.6 | P79: 248601872.8 | Q79: 430909912.8 | R79: 2612076.203 | S79: 861786761.4 | T79: 0.5745245076
A80: 790 | C80: 0 | D80: 0 | E80: 0 | F80: 0 | G80: 0 | H80: 0 | I80: 0 | J80: 0 | K80: 0 | L80: 0 | M80: 0 | N80: 0 | O80: 179662899.6 | P80: 248601872.8 | Q80: 430909912.8 | R80: 2612076.203 | S80: 861786761.4 | T80: 0.5745245076
A81: 788 | C81: 0 | D81: 0 | E81: 0 | F81: 0 | G81: 0 | H81: 0 | I81: 0 | J81: 0 | K81: 0 | L81: 0 | M81: 0 | N81: 0 | O81: 179662899.6 | P81: 248601872.8 | Q81: 430909912.8 | R81: 2612076.203 | S81: 861786761.4 | T81: 0.5745245076
A82: 786 | C82: 0 | D82: 0 | E82: 0 | F82: 0 | G82: 0 | H82: 0 | I82: 0 | J82: 0 | K82: 0 | L82: 0 | M82: 0 | N82: 0 | O82: 179662899.6 | P82: 248601872.8 | Q82: 430909912.8 | R82: 2612076.203 | S82: 861786761.4 | T82: 0.5745245076
A83: 784 | C83: 0 | D83: 0 | E83: 0 | F83: 0 | G83: 0 | H83: 0 | I83: 0 | J83: 0 | K83: 0 | L83: 0 | M83: 0 | N83: 0 | O83: 179662899.6 | P83: 248601872.8 | Q83: 430909912.8 | R83: 2612076.203 | S83: 861786761.4 | T83: 0.5745245076
A84: 782 | C84: 0 | D84: 0 | E84: 0 | F84: 0 | G84: 0 | H84: 0 | I84: 0 | J84: 0 | K84: 0 | L84: 0 | M84: 0 | N84: 0 | O84: 179662899.6 | P84: 248601872.8 | Q84: 430909912.8 | R84: 2612076.203 | S84: 861786761.4 | T84: 0.5745245076
A85: 780 | C85: =IF($A85<=(C$12*1000), IF($A85>=(C$12*1000-C$18),C$20,0),0) -> 0 | D85: 0 | E85: 0 | F85: 0 | G85: 0 | H85: 0 | I85: 0 | J85: 0 | K85: 0 | L85: 0 | M85: 0 | N85: 465792702.6 | O85: 179662899.6 | P85: 248601872.8 | Q85: 430909912.8 | R85: 2612076.203 | S85: 1327579464 | T85: 0.885052976
A86: 778 | C86: 0 | D86: 0 | E86: 0 | F86: 0 | G86: 0 | H86: 0 | I86: 0 | J86: 0 | K86: 0 | L86: 0 | M86: 0 | N86: 465792702.6 | O86: 179662899.6 | P86: 248601872.8 | Q86: 430909912.8 | R86: 2612076.203 | S86: 1327579464 | T86: 0.885052976
A87: 776 | C87: 0 | D87: 0 | E87: 0 | F87: 0 | G87: 0 | H87: 0 | I87: 0 | J87: 0 | K87: 0 | L87: 0 | M87: 0 | N87: 465792702.6 | O87: 179662899.6 | P87: 248601872.8 | Q87: 430909912.8 | R87: 2612076.203 | S87: 1327579464 | T87: 0.885052976
A88: 774 | C88: 0 | D88: 0 | E88: 0 | F88: 0 | G88: 0 | H88: 0 | I88: 0 | J88: 0 | K88: 0 | L88: 0 | M88: 0 | N88: 465792702.6 | O88: 179662899.6 | P88: 248601872.8 | Q88: 430909912.8 | R88: 2612076.203 | S88: 1327579464 | T88: 0.885052976
A89: 772 | C89: 0 | D89: 0 | E89: 0 | F89: 0 | G89: 0 | H89: 0 | I89: 0 | J89: 0 | K89: 0 | L89: 0 | M89: 0 | N89: 465792702.6 | O89: 179662899.6 | P89: 248601872.8 | Q89: 430909912.8 | R89: 2612076.203 | S89: =SUM(C89:R89) -> 1327579464 | T89: 0.885052976
A90: 770 | C90: 0 | D90: 0 | E90: 0 | F90: 0 | G90: 0 | H90: 0 | I90: 0 | J90: 0 | K90: 0 | L90: 0 | M90: 0 | N90: 465792702.6 | O90: 179662899.6 | P90: 248601872.8 | Q90: 430909912.8 | R90: 2612076.203 | S90: 1327579464 | T90: =S90/$C$9 -> 0.885052976
A91: 768 | C91: 0 | D91: 0 | E91: 0 | F91: 0 | G91: 0 | H91: 0 | I91: 0 | J91: 0 | K91: 0 | L91: 0 | M91: 0 | N91: 465792702.6 | O91: 179662899.6 | P91: 248601872.8 | Q91: 430909912.8 | R91: 0 | S91: 1324967388 | T91: 0.8833115919
A92: 766 | C92: 0 | D92: 0 | E92: 0 | F92: 0 | G92: 0 | H92: 0 | I92: 0 | J92: 0 | K92: 0 | L92: 0 | M92: 0 | N92: 465792702.6 | O92: 179662899.6 | P92: 248601872.8 | Q92: 430909912.8 | R92: 0 | S92: 1324967388 | T92: 0.8833115919
A93: 764 | C93: 0 | D93: 0 | E93: 0 | F93: 0 | G93: 0 | H93: 0 | I93: 0 | J93: 0 | K93: 0 | L93: 0 | M93: 0 | N93: 465792702.6 | O93: 179662899.6 | P93: 248601872.8 | Q93: 430909912.8 | R93: 0 | S93: 1324967388 | T93: 0.8833115919
A94: 762 | C94: 0 | D94: 0 | E94: 0 | F94: 0 | G94: 0 | H94: 0 | I94: 0 | J94: 0 | K94: 0 | L94: 0 | M94: 0 | N94: 465792702.6 | O94: 179662899.6 | P94: 248601872.8 | Q94: 430909912.8 | R94: 0 | S94: 1324967388 | T94: 0.8833115919
A95: 760 | C95: =IF($A95<=(C$12*1000), IF($A95>=(C$12*1000-C$18),C$20,0),0) -> 0 | D95: 0 | E95: 0 | F95: 0 | G95: 0 | H95: 0 | I95: 0 | J95: 0 | K95: 0 | L95: 0 | M95: 0 | N95: 465792702.6 | O95: 179662899.6 | P95: 248601872.8 | Q95: 430909912.8 | R95: 0 | S95: 1324967388 | T95: 0.8833115919
A96: 758 | C96: 0 | D96: 0 | E96: 0 | F96: 0 | G96: 0 | H96: 0 | I96: 0 | J96: 0 | K96: 0 | L96: 0 | M96: 0 | N96: 465792702.6 | O96: 179662899.6 | P96: 248601872.8 | Q96: 430909912.8 | R96: 0 | S96: 1324967388 | T96: 0.8833115919
A97: 756 | C97: 0 | D97: 0 | E97: 0 | F97: 0 | G97: 0 | H97: 0 | I97: 0 | J97: 0 | K97: 0 | L97: 0 | M97: 0 | N97: 465792702.6 | O97: 179662899.6 | P97: 248601872.8 | Q97: 430909912.8 | R97: 0 | S97: 1324967388 | T97: 0.8833115919
A98: 754 | C98: 0 | D98: 0 | E98: 0 | F98: 0 | G98: 0 | H98: 0 | I98: 0 | J98: 0 | K98: 0 | L98: 0 | M98: 324360348.7 | N98: 465792702.6 | O98: 179662899.6 | P98: 248601872.8 | Q98: 430909912.8 | R98: 0 | S98: 1649327737 | T98: 1.099551824
A99: 752 | C99: 0 | D99: 0 | E99: 0 | F99: 0 | G99: 0 | H99: 0 | I99: 0 | J99: 0 | K99: 0 | L99: 0 | M99: 324360348.7 | N99: 465792702.6 | O99: 179662899.6 | P99: 248601872.8 | Q99: 430909912.8 | R99: 0 | S99: 1649327737 | T99: 1.099551824
A100: 750 | C100: 0 | D100: 0 | E100: 0 | F100: 0 | G100: 0 | H100: 0 | I100: 0 | J100: 0 | K100: 0 | L100: 116014207.3 | M100: 324360348.7 | N100: 465792702.6 | O100: 179662899.6 | P100: 248601872.8 | Q100: 430909912.8 | R100: 0 | S100: 1765341944 | T100: 1.176894629
A101: 748 | C101: 0 | D101: 0 | E101: 0 | F101: 0 | G101: 0 | H101: 0 | I101: 0 | J101: 0 | K101: 0 | L101: 116014207.3 | M101: 324360348.7 | N101: 465792702.6 | O101: 179662899.6 | P101: 248601872.8 | Q101: 430909912.8 | R101: 0 | S101: 1765341944 | T101: 1.176894629
A102: 746 | C102: 0 | D102: 0 | E102: 0 | F102: 0 | G102: 0 | H102: 0 | I102: 0 | J102: 0 | K102: 0 | L102: 116014207.3 | M102: 324360348.7 | N102: 465792702.6 | O102: 179662899.6 | P102: 248601872.8 | Q102: 0 | R102: 0 | S102: 1334432031 | T102: 0.889621354
A103: 744 | C103: 0 | D103: 0 | E103: 0 | F103: 0 | G103: 0 | H103: 0 | I103: 0 | J103: 0 | K103: 0 | L103: 116014207.3 | M103: 324360348.7 | N103: 465792702.6 | O103: 179662899.6 | P103: 248601872.8 | Q103: 0 | R103: 0 | S103: 1334432031 | T103: 0.889621354
A104: 742 | C104: 0 | D104: 0 | E104: 0 | F104: 0 | G104: 0 | H104: 0 | I104: 0 | J104: 0 | K104: 0 | L104: 116014207.3 | M104: 324360348.7 | N104: 465792702.6 | O104: 179662899.6 | P104: 248601872.8 | Q104: 0 | R104: 0 | S104: 1334432031 | T104: 0.889621354
A105: 740 | C105: =IF($A105<=(C$12*1000), IF($A105>=(C$12*1000-C$18),C$20,0),0) -> 0 | D105: 0 | E105: 0 | F105: 0 | G105: 0 | H105: 0 | I105: 0 | J105: 0 | K105: 0 | L105: 116014207.3 | M105: 324360348.7 | N105: 465792702.6 | O105: 179662899.6 | P105: 248601872.8 | Q105: 0 | R105: 0 | S105: 1334432031 | T105: 0.889621354
A106: 738 | C106: 0 | D106: 0 | E106: 0 | F106: 0 | G106: 0 | H106: 0 | I106: 0 | J106: 0 | K106: 0 | L106: 116014207.3 | M106: 324360348.7 | N106: 465792702.6 | O106: 179662899.6 | P106: 248601872.8 | Q106: 0 | R106: 0 | S106: 1334432031 | T106: 0.889621354
A107: 736 | C107: 0 | D107: 0 | E107: 0 | F107: 0 | G107: 0 | H107: 0 | I107: 0 | J107: 0 | K107: 0 | L107: 116014207.3 | M107: 324360348.7 | N107: 465792702.6 | O107: 179662899.6 | P107: 248601872.8 | Q107: 0 | R107: 0 | S107: 1334432031 | T107: 0.889621354
A108: 734 | C108: 0 | D108: 0 | E108: 0 | F108: 0 | G108: 0 | H108: 0 | I108: 0 | J108: 0 | K108: 0 | L108: 116014207.3 | M108: 324360348.7 | N108: 465792702.6 | O108: 179662899.6 | P108: 248601872.8 | Q108: 0 | R108: 0 | S108: 1334432031 | T108: 0.889621354
A109: 732 | C109: 0 | D109: 0 | E109: 0 | F109: 0 | G109: 0 | H109: 0 | I109: 0 | J109: 0 | K109: 0 | L109: 116014207.3 | M109: 324360348.7 | N109: 465792702.6 | O109: 179662899.6 | P109: 248601872.8 | Q109: 0 | R109: 0 | S109: 1334432031 | T109: 0.889621354
A110: 730 | C110: 0 | D110: 0 | E110: 0 | F110: 0 | G110: 0 | H110: 0 | I110: 0 | J110: 0 | K110: 0 | L110: 116014207.3 | M110: 324360348.7 | N110: 465792702.6 | O110: 179662899.6 | P110: 248601872.8 | Q110: 0 | R110: 0 | S110: 1334432031 | T110: 0.889621354
A111: 728 | C111: 0 | D111: 0 | E111: 0 | F111: 0 | G111: 0 | H111: 0 | I111: 0 | J111: 0 | K111: 0 | L111: 116014207.3 | M111: 324360348.7 | N111: 465792702.6 | O111: 179662899.6 | P111: 248601872.8 | Q111: 0 | R111: 0 | S111: 1334432031 | T111: 0.889621354
A112: 726 | C112: 0 | D112: 0 | E112: 0 | F112: 0 | G112: 0 | H112: 0 | I112: 0 | J112: 0 | K112: 0 | L112: 116014207.3 | M112: 324360348.7 | N112: 465792702.6 | O112: 179662899.6 | P112: 0 | Q112: 0 | R112: 0 | S112: 1085830158 | T112: 0.7238867721
A113: 724 | C113: 0 | D113: 0 | E113: 0 | F113: 0 | G113: 0 | H113: 0 | I113: 0 | J113: 0 | K113: 0 | L113: 116014207.3 | M113: 324360348.7 | N113: 465792702.6 | O113: 179662899.6 | P113: 0 | Q113: 0 | R113: 0 | S113: 1085830158 | T113: 0.7238867721
A114: 722 | C114: 0 | D114: 0 | E114: 0 | F114: 0 | G114: 0 | H114: 0 | I114: 0 | J114: 0 | K114: 0 | L114: 116014207.3 | M114: 324360348.7 | N114: 465792702.6 | O114: 179662899.6 | P114: 0 | Q114: 0 | R114: 0 | S114: 1085830158 | T114: 0.7238867721
A115: 720 | C115: =IF($A115<=(C$12*1000), IF($A115>=(C$12*1000-C$18),C$20,0),0) -> 0 | D115: 0 | E115: 0 | F115: 0 | G115: 0 | H115: 0 | I115: 0 | J115: 24860187.28 | K115: 842208589 | L115: 116014207.3 | M115: 324360348.7 | N115: 465792702.6 | O115: 179662899.6 | P115: 0 | Q115: 0 | R115: 0 | S115: 1952898934 | T115: 1.301932623
A116: 718 | C116: 0 | D116: 0 | E116: 0 | F116: 0 | G116: 0 | H116: 0 | I116: 0 | J116: 24860187.28 | K116: 842208589 | L116: 116014207.3 | M116: 324360348.7 | N116: 465792702.6 | O116: 179662899.6 | P116: 0 | Q116: 0 | R116: 0 | S116: 1952898934 | T116: 1.301932623
A117: 716 | C117: 0 | D117: 0 | E117: 0 | F117: 0 | G117: 0 | H117: 0 | I117: 0 | J117: 24860187.28 | K117: 842208589 | L117: 116014207.3 | M117: 324360348.7 | N117: 465792702.6 | O117: 179662899.6 | P117: 0 | Q117: 0 | R117: 0 | S117: 1952898934 | T117: 1.301932623
A118: 714 | C118: 0 | D118: 0 | E118: 0 | F118: 0 | G118: 0 | H118: 0 | I118: 0 | J118: 24860187.28 | K118: 842208589 | L118: 116014207.3 | M118: 324360348.7 | N118: 465792702.6 | O118: 179662899.6 | P118: 0 | Q118: 0 | R118: 0 | S118: 1952898934 | T118: 1.301932623
A119: 712 | C119: 0 | D119: 0 | E119: 0 | F119: 0 | G119: 0 | H119: 0 | I119: 0 | J119: 24860187.28 | K119: 842208589 | L119: 116014207.3 | M119: 324360348.7 | N119: 465792702.6 | O119: 179662899.6 | P119: 0 | Q119: 0 | R119: 0 | S119: 1952898934 | T119: 1.301932623
A120: 710 | C120: 0 | D120: 0 | E120: 0 | F120: 0 | G120: 0 | H120: 0 | I120: 0 | J120: 24860187.28 | K120: 842208589 | L120: 116014207.3 | M120: 324360348.7 | N120: 465792702.6 | O120: 179662899.6 | P120: 0 | Q120: 0 | R120: 0 | S120: 1952898934 | T120: 1.301932623
A121: 708 | C121: 0 | D121: 0 | E121: 0 | F121: 0 | G121: 0 | H121: 0 | I121: 0 | J121: 24860187.28 | K121: 842208589 | L121: 116014207.3 | M121: 324360348.7 | N121: 465792702.6 | O121: 179662899.6 | P121: 0 | Q121: 0 | R121: 0 | S121: 1952898934 | T121: 1.301932623
A122: 706 | C122: 0 | D122: 0 | E122: 0 | F122: 0 | G122: 0 | H122: 0 | I122: 0 | J122: 24860187.28 | K122: 842208589 | L122: 116014207.3 | M122: 324360348.7 | N122: 465792702.6 | O122: 179662899.6 | P122: 0 | Q122: 0 | R122: 0 | S122: 1952898934 | T122: 1.301932623
A123: 704 | C123: 0 | D123: 0 | E123: 0 | F123: 0 | G123: 0 | H123: 0 | I123: 0 | J123: 24860187.28 | K123: 842208589 | L123: 116014207.3 | M123: 324360348.7 | N123: 465792702.6 | O123: 179662899.6 | P123: 0 | Q123: 0 | R123: 0 | S123: 1952898934 | T123: 1.301932623
A124: 702 | C124: 0 | D124: 0 | E124: 0 | F124: 0 | G124: 0 | H124: 0 | I124: 0 | J124: 24860187.28 | K124: 842208589 | L124: 116014207.3 | M124: 324360348.7 | N124: 465792702.6 | O124: 179662899.6 | P124: 0 | Q124: 0 | R124: 0 | S124: 1952898934 | T124: 1.301932623
A125: 700 | C125: =IF($A125<=(C$12*1000), IF($A125>=(C$12*1000-C$18),C$20,0),0) -> 0 | D125: 0 | E125: 0 | F125: 0 | G125: 0 | H125: 0 | I125: 0 | J125: 24860187.28 | K125: 842208589 | L125: 116014207.3 | M125: 324360348.7 | N125: 465792702.6 | O125: 179662899.6 | P125: 0 | Q125: 0 | R125: 0 | S125: 1952898934 | T125: 1.301932623
A126: 698 | C126: 0 | D126: 0 | E126: 0 | F126: 0 | G126: 0 | H126: 0 | I126: 0 | J126: 24860187.28 | K126: 842208589 | L126: 116014207.3 | M126: 324360348.7 | N126: 465792702.6 | O126: 179662899.6 | P126: 0 | Q126: 0 | R126: 0 | S126: 1952898934 | T126: 1.301932623
A127: 696 | C127: 0 | D127: 0 | E127: 0 | F127: 0 | G127: 0 | H127: 0 | I127: 0 | J127: 24860187.28 | K127: 842208589 | L127: 116014207.3 | M127: 324360348.7 | N127: 465792702.6 | O127: 0 | P127: 0 | Q127: 0 | R127: 0 | S127: 1773236035 | T127: 1.182157357
A128: 694 | C128: 0 | D128: 0 | E128: 0 | F128: 0 | G128: 0 | H128: 0 | I128: 0 | J128: 24860187.28 | K128: 842208589 | L128: 116014207.3 | M128: 324360348.7 | N128: 465792702.6 | O128: 0 | P128: 0 | Q128: 0 | R128: 0 | S128: 1773236035 | T128: 1.182157357
A129: 692 | C129: 0 | D129: 0 | E129: 0 | F129: 0 | G129: 0 | H129: 0 | I129: 0 | J129: 24860187.28 | K129: 842208589 | L129: 116014207.3 | M129: 324360348.7 | N129: 465792702.6 | O129: 0 | P129: 0 | Q129: 0 | R129: 0 | S129: 1773236035 | T129: 1.182157357
A130: 690 | C130: 0 | D130: 0 | E130: 0 | F130: 0 | G130: 0 | H130: 0 | I130: 0 | J130: 24860187.28 | K130: 842208589 | L130: 116014207.3 | M130: 324360348.7 | N130: 465792702.6 | O130: 0 | P130: 0 | Q130: 0 | R130: 0 | S130: 1773236035 | T130: 1.182157357
A131: 688 | C131: 0 | D131: 0 | E131: 0 | F131: 0 | G131: 0 | H131: 0 | I131: 0 | J131: 24860187.28 | K131: 842208589 | L131: 116014207.3 | M131: 324360348.7 | N131: 465792702.6 | O131: 0 | P131: 0 | Q131: 0 | R131: 0 | S131: 1773236035 | T131: 1.182157357
A132: 686 | C132: 0 | D132: 0 | E132: 0 | F132: 0 | G132: 0 | H132: 0 | I132: 0 | J132: 24860187.28 | K132: 842208589 | L132: 116014207.3 | M132: 324360348.7 | N132: 465792702.6 | O132: 0 | P132: 0 | Q132: 0 | R132: 0 | S132: 1773236035 | T132: 1.182157357
A133: 684 | C133: 0 | D133: 0 | E133: 0 | F133: 0 | G133: 0 | H133: 0 | I133: 0 | J133: 24860187.28 | K133: 842208589 | L133: 116014207.3 | M133: 324360348.7 | N133: 465792702.6 | O133: 0 | P133: 0 | Q133: 0 | R133: 0 | S133: 1773236035 | T133: 1.182157357
A134: 682 | C134: 0 | D134: 0 | E134: 0 | F134: 0 | G134: 0 | H134: 0 | I134: 0 | J134: 24860187.28 | K134: 842208589 | L134: 116014207.3 | M134: 324360348.7 | N134: 465792702.6 | O134: 0 | P134: 0 | Q134: 0 | R134: 0 | S134: 1773236035 | T134: 1.182157357
A135: 680 | C135: =IF($A135<=(C$12*1000), IF($A135>=(C$12*1000-C$18),C$20,0),0) -> 0 | D135: 0 | E135: 0 | F135: 0 | G135: 0 | H135: 0 | I135: 0 | J135: 24860187.28 | K135: 842208589 | L135: 116014207.3 | M135: 324360348.7 | N135: 465792702.6 | O135: 0 | P135: 0 | Q135: 0 | R135: 0 | S135: 1773236035 | T135: 1.182157357
A136: 678 | C136: 0 | D136: 0 | E136: 0 | F136: 0 | G136: 0 | H136: 0 | I136: 0 | J136: 24860187.28 | K136: 842208589 | L136: 116014207.3 | M136: 324360348.7 | N136: 465792702.6 | O136: 0 | P136: 0 | Q136: 0 | R136: 0 | S136: 1773236035 | T136: 1.182157357
A137: 676 | C137: 0 | D137: 0 | E137: 0 | F137: 0 | G137: 0 | H137: 0 | I137: 0 | J137: 24860187.28 | K137: 842208589 | L137: 116014207.3 | M137: 324360348.7 | N137: 0 | O137: 0 | P137: 0 | Q137: 0 | R137: 0 | S137: 1307443332 | T137: 0.8716288882
A138: 674 | C138: 0 | D138: 0 | E138: 0 | F138: 0 | G138: 0 | H138: 0 | I138: 0 | J138: 24860187.28 | K138: 842208589 | L138: 116014207.3 | M138: 324360348.7 | N138: 0 | O138: 0 | P138: 0 | Q138: 0 | R138: 0 | S138: 1307443332 | T138: 0.8716288882
A139: 672 | C139: 0 | D139: 0 | E139: 0 | F139: 0 | G139: 0 | H139: 0 | I139: 0 | J139: 24860187.28 | K139: 842208589 | L139: 116014207.3 | M139: 324360348.7 | N139: 0 | O139: 0 | P139: 0 | Q139: 0 | R139: 0 | S139: 1307443332 | T139: 0.8716288882
A140: 670 | C140: 0 | D140: 0 | E140: 0 | F140: 0 | G140: 0 | H140: 0 | I140: 0 | J140: 24860187.28 | K140: 842208589 | L140: 116014207.3 | M140: 324360348.7 | N140: 0 | O140: 0 | P140: 0 | Q140: 0 | R140: 0 | S140: 1307443332 | T140: 0.8716288882
A141: 668 | C141: 0 | D141: 0 | E141: 0 | F141: 0 | G141: 0 | H141: 0 | I141: 0 | J141: 24860187.28 | K141: 842208589 | L141: 116014207.3 | M141: 324360348.7 | N141: 0 | O141: 0 | P141: 0 | Q141: 0 | R141: 0 | S141: 1307443332 | T141: 0.8716288882
A142: 666 | C142: 0 | D142: 0 | E142: 0 | F142: 0 | G142: 0 | H142: 0 | I142: 0 | J142: 24860187.28 | K142: 842208589 | L142: 116014207.3 | M142: 324360348.7 | N142: 0 | O142: 0 | P142: 0 | Q142: 0 | R142: 0 | S142: 1307443332 | T142: 0.8716288882
A143: 664 | C143: 0 | D143: 0 | E143: 0 | F143: 0 | G143: 0 | H143: 0 | I143: 0 | J143: 24860187.28 | K143: 842208589 | L143: 116014207.3 | M143: 324360348.7 | N143: 0 | O143: 0 | P143: 0 | Q143: 0 | R143: 0 | S143: 1307443332 | T143: 0.8716288882
A144: 662 | C144: 0 | D144: 0 | E144: 0 | F144: 0 | G144: 0 | H144: 0 | I144: 0 | J144: 24860187.28 | K144: 842208589 | L144: 116014207.3 | M144: 324360348.7 | N144: 0 | O144: 0 | P144: 0 | Q144: 0 | R144: 0 | S144: 1307443332 | T144: 0.8716288882
A145: 660 | C145: =IF($A145<=(C$12*1000), IF($A145>=(C$12*1000-C$18),C$20,0),0) -> 0 | D145: 0 | E145: 0 | F145: 0 | G145: 0 | H145: 0 | I145: 0 | J145: 24860187.28 | K145: 842208589 | L145: 116014207.3 | M145: 324360348.7 | N145: 0 | O145: 0 | P145: 0 | Q145: 0 | R145: 0 | S145: 1307443332 | T145: 0.8716288882
A146: 658 | C146: 0 | D146: 0 | E146: 0 | F146: 0 | G146: 0 | H146: 0 | I146: 0 | J146: 24860187.28 | K146: 842208589 | L146: 116014207.3 | M146: 324360348.7 | N146: 0 | O146: 0 | P146: 0 | Q146: 0 | R146: 0 | S146: 1307443332 | T146: 0.8716288882
A147: 656 | C147: 0 | D147: 0 | E147: 0 | F147: 0 | G147: 0 | H147: 0 | I147: 0 | J147: 24860187.28 | K147: 842208589 | L147: 116014207.3 | M147: 324360348.7 | N147: 0 | O147: 0 | P147: 0 | Q147: 0 | R147: 0 | S147: 1307443332 | T147: 0.8716288882
A148: 654 | C148: 0 | D148: 0 | E148: 0 | F148: 0 | G148: 0 | H148: 0 | I148: 0 | J148: 24860187.28 | K148: 842208589 | L148: 116014207.3 | M148: 324360348.7 | N148: 0 | O148: 0 | P148: 0 | Q148: 0 | R148: 0 | S148: 1307443332 | T148: 0.8716288882
A149: 652 | C149: 0 | D149: 0 | E149: 0 | F149: 0 | G149: 0 | H149: 0 | I149: 0 | J149: 24860187.28 | K149: 842208589 | L149: 116014207.3 | M149: 324360348.7 | N149: 0 | O149: 0 | P149: 0 | Q149: 0 | R149: 0 | S149: 1307443332 | T149: 0.8716288882
A150: 650 | C150: 0 | D150: 0 | E150: 0 | F150: 0 | G150: 0 | H150: 0 | I150: 116014207.3 | J150: 24860187.28 | K150: 842208589 | L150: 116014207.3 | M150: 0 | N150: 0 | O150: 0 | P150: 0 | Q150: 0 | R150: 0 | S150: 1099097191 | T150: 0.7327314606
A151: 648 | C151: 0 | D151: 0 | E151: 0 | F151: 0 | G151: 0 | H151: 0 | I151: 116014207.3 | J151: 24860187.28 | K151: 842208589 | L151: 116014207.3 | M151: 0 | N151: 0 | O151: 0 | P151: 0 | Q151: 0 | R151: 0 | S151: 1099097191 | T151: 0.7327314606
A152: 646 | C152: 0 | D152: 0 | E152: 0 | F152: 0 | G152: 0 | H152: 0 | I152: 116014207.3 | J152: 24860187.28 | K152: 842208589 | L152: 0 | M152: 0 | N152: 0 | O152: 0 | P152: 0 | Q152: 0 | R152: 0 | S152: 983082983.5 | T152: 0.6553886557
A153: 644 | C153: 0 | D153: 0 | E153: 0 | F153: 0 | G153: 0 | H153: 0 | I153: 116014207.3 | J153: 24860187.28 | K153: 842208589 | L153: 0 | M153: 0 | N153: 0 | O153: 0 | P153: 0 | Q153: 0 | R153: 0 | S153: =SUM(C153:R153) -> 983082983.5 | T153: 0.6553886557
A154: 642 | C154: 0 | D154: 0 | E154: 0 | F154: 0 | G154: 0 | H154: 0 | I154: 116014207.3 | J154: 24860187.28 | K154: 842208589 | L154: 0 | M154: 0 | N154: 0 | O154: 0 | P154: 0 | Q154: 0 | R154: 0 | S154: 983082983.5 | T154: =S154/$C$9 -> 0.6553886557
A155: 640 | C155: =IF($A155<=(C$12*1000), IF($A155>=(C$12*1000-C$18),C$20,0),0) -> 0 | D155: 0 | E155: 0 | F155: 0 | G155: 0 | H155: 0 | I155: 116014207.3 | J155: 24860187.28 | K155: 842208589 | L155: 0 | M155: 0 | N155: 0 | O155: 0 | P155: 0 | Q155: 0 | R155: 0 | S155: 983082983.5 | T155: 0.6553886557
A156: 638 | C156: 0 | D156: 0 | E156: 0 | F156: 0 | G156: 0 | H156: 0 | I156: 116014207.3 | J156: 24860187.28 | K156: 842208589 | L156: 0 | M156: 0 | N156: 0 | O156: 0 | P156: 0 | Q156: 0 | R156: 0 | S156: 983082983.5 | T156: 0.6553886557
A157: 636 | C157: 0 | D157: 0 | E157: 0 | F157: 0 | G157: 0 | H157: 0 | I157: 116014207.3 | J157: 24860187.28 | K157: 842208589 | L157: 0 | M157: 0 | N157: 0 | O157: 0 | P157: 0 | Q157: 0 | R157: 0 | S157: 983082983.5 | T157: 0.6553886557
A158: 634 | C158: 0 | D158: 0 | E158: 0 | F158: 0 | G158: 0 | H158: 0 | I158: 116014207.3 | J158: 24860187.28 | K158: 842208589 | L158: 0 | M158: 0 | N158: 0 | O158: 0 | P158: 0 | Q158: 0 | R158: 0 | S158: 983082983.5 | T158: 0.6553886557
A159: 632 | C159: 0 | D159: 0 | E159: 0 | F159: 0 | G159: 0 | H159: 0 | I159: 116014207.3 | J159: 24860187.28 | K159: 842208589 | L159: 0 | M159: 0 | N159: 0 | O159: 0 | P159: 0 | Q159: 0 | R159: 0 | S159: 983082983.5 | T159: 0.6553886557
A160: 630 | C160: 0 | D160: 0 | E160: 0 | F160: 0 | G160: 0 | H160: 0 | I160: 116014207.3 | J160: 24860187.28 | K160: 842208589 | L160: 0 | M160: 0 | N160: 0 | O160: 0 | P160: 0 | Q160: 0 | R160: 0 | S160: 983082983.5 | T160: 0.6553886557
A161: 628 | C161: 0 | D161: 0 | E161: 0 | F161: 0 | G161: 0 | H161: 0 | I161: 116014207.3 | J161: 24860187.28 | K161: 842208589 | L161: 0 | M161: 0 | N161: 0 | O161: 0 | P161: 0 | Q161: 0 | R161: 0 | S161: 983082983.5 | T161: 0.6553886557
A162: 626 | C162: 0 | D162: 0 | E162: 0 | F162: 0 | G162: 0 | H162: 0 | I162: 116014207.3 | J162: 24860187.28 | K162: 842208589 | L162: 0 | M162: 0 | N162: 0 | O162: 0 | P162: 0 | Q162: 0 | R162: 0 | S162: 983082983.5 | T162: 0.6553886557
A163: 624 | C163: 0 | D163: 0 | E163: 0 | F163: 0 | G163: 0 | H163: 0 | I163: 116014207.3 | J163: 24860187.28 | K163: 842208589 | L163: 0 | M163: 0 | N163: 0 | O163: 0 | P163: 0 | Q163: 0 | R163: 0 | S163: 983082983.5 | T163: 0.6553886557
A164: 622 | C164: 0 | D164: 0 | E164: 0 | F164: 0 | G164: 0 | H164: 0 | I164: 116014207.3 | J164: 24860187.28 | K164: 842208589 | L164: 0 | M164: 0 | N164: 0 | O164: 0 | P164: 0 | Q164: 0 | R164: 0 | S164: 983082983.5 | T164: 0.6553886557
A165: 620 | C165: =IF($A165<=(C$12*1000), IF($A165>=(C$12*1000-C$18),C$20,0),0) -> 0 | D165: 0 | E165: 0 | F165: 0 | G165: 0 | H165: 0 | I165: 116014207.3 | J165: 24860187.28 | K165: 842208589 | L165: 0 | M165: 0 | N165: 0 | O165: 0 | P165: 0 | Q165: 0 | R165: 0 | S165: 983082983.5 | T165: 0.6553886557
A166: 618 | C166: 0 | D166: 0 | E166: 0 | F166: 0 | G166: 0 | H166: 8286729.093 | I166: 116014207.3 | J166: 24860187.28 | K166: 842208589 | L166: 0 | M166: 0 | N166: 0 | O166: 0 | P166: 0 | Q166: 0 | R166: 0 | S166: 991369712.6 | T166: 0.6609131418
A167: 616 | C167: 0 | D167: 0 | E167: 0 | F167: 0 | G167: 87010655.47 | H167: 8286729.093 | I167: 116014207.3 | J167: 0 | K167: 0 | L167: 0 | M167: 0 | N167: 0 | O167: 0 | P167: 0 | Q167: 0 | R167: 0 | S167: 211311591.9 | T167: 0.1408743946
A168: 614 | C168: 0 | D168: 0 | E168: 0 | F168: 0 | G168: 87010655.47 | H168: 8286729.093 | I168: 116014207.3 | J168: 0 | K168: 0 | L168: 0 | M168: 0 | N168: 0 | O168: 0 | P168: 0 | Q168: 0 | R168: 0 | S168: 211311591.9 | T168: 0.1408743946
A169: 612 | C169: 0 | D169: 0 | E169: 0 | F169: 0 | G169: 87010655.47 | H169: 8286729.093 | I169: 116014207.3 | J169: 0 | K169: 0 | L169: 0 | M169: 0 | N169: 0 | O169: 0 | P169: 0 | Q169: 0 | R169: 0 | S169: 211311591.9 | T169: 0.1408743946
A170: 610 | C170: 0 | D170: 0 | E170: 0 | F170: 0 | G170: 87010655.47 | H170: 8286729.093 | I170: 116014207.3 | J170: 0 | K170: 0 | L170: 0 | M170: 0 | N170: 0 | O170: 0 | P170: 0 | Q170: 0 | R170: 0 | S170: 211311591.9 | T170: 0.1408743946
A171: 608 | C171: 0 | D171: 0 | E171: 0 | F171: 0 | G171: 87010655.47 | H171: 8286729.093 | I171: 116014207.3 | J171: 0 | K171: 0 | L171: 0 | M171: 0 | N171: 0 | O171: 0 | P171: 0 | Q171: 0 | R171: 0 | S171: 211311591.9 | T171: 0.1408743946
A172: 606 | C172: 0 | D172: 0 | E172: 0 | F172: 0 | G172: 87010655.47 | H172: 8286729.093 | I172: 116014207.3 | J172: 0 | K172: 0 | L172: 0 | M172: 0 | N172: 0 | O172: 0 | P172: 0 | Q172: 0 | R172: 0 | S172: 211311591.9 | T172: 0.1408743946
A173: 604 | C173: 0 | D173: 0 | E173: 0 | F173: 0 | G173: 87010655.47 | H173: 8286729.093 | I173: 116014207.3 | J173: 0 | K173: 0 | L173: 0 | M173: 0 | N173: 0 | O173: 0 | P173: 0 | Q173: 0 | R173: 0 | S173: 211311591.9 | T173: 0.1408743946
A174: 602 | C174: 0 | D174: 0 | E174: 0 | F174: 0 | G174: 87010655.47 | H174: 8286729.093 | I174: 116014207.3 | J174: 0 | K174: 0 | L174: 0 | M174: 0 | N174: 0 | O174: 0 | P174: 0 | Q174: 0 | R174: 0 | S174: 211311591.9 | T174: 0.1408743946
A175: 600 | C175: =IF($A175<=(C$12*1000), IF($A175>=(C$12*1000-C$18),C$20,0),0) -> 0 | D175: 0 | E175: 0 | F175: 0 | G175: 87010655.47 | H175: 8286729.093 | I175: 116014207.3 | J175: 0 | K175: 0 | L175: 0 | M175: 0 | N175: 0 | O175: 0 | P175: 0 | Q175: 0 | R175: 0 | S175: 211311591.9 | T175: 0.1408743946
A176: 598 | C176: 0 | D176: 0 | E176: 0 | F176: 0 | G176: 87010655.47 | H176: 8286729.093 | I176: 116014207.3 | J176: 0 | K176: 0 | L176: 0 | M176: 0 | N176: 0 | O176: 0 | P176: 0 | Q176: 0 | R176: 0 | S176: 211311591.9 | T176: 0.1408743946
A177: 596 | C177: 0 | D177: 0 | E177: 0 | F177: 0 | G177: 87010655.47 | H177: 8286729.093 | I177: 116014207.3 | J177: 0 | K177: 0 | L177: 0 | M177: 0 | N177: 0 | O177: 0 | P177: 0 | Q177: 0 | R177: 0 | S177: 211311591.9 | T177: 0.1408743946
A178: 594 | C178: 0 | D178: 0 | E178: 0 | F178: 0 | G178: 87010655.47 | H178: 8286729.093 | I178: 116014207.3 | J178: 0 | K178: 0 | L178: 0 | M178: 0 | N178: 0 | O178: 0 | P178: 0 | Q178: 0 | R178: 0 | S178: 211311591.9 | T178: 0.1408743946
A179: 592 | C179: 0 | D179: 0 | E179: 0 | F179: 116014207.3 | G179: 87010655.47 | H179: 8286729.093 | I179: 116014207.3 | J179: 0 | K179: 0 | L179: 0 | M179: 0 | N179: 0 | O179: 0 | P179: 0 | Q179: 0 | R179: 0 | S179: 327325799.2 | T179: 0.2182171994
A180: 590 | C180: 0 | D180: 0 | E180: 0 | F180: 116014207.3 | G180: 87010655.47 | H180: 8286729.093 | I180: 116014207.3 | J180: 0 | K180: 0 | L180: 0 | M180: 0 | N180: 0 | O180: 0 | P180: 0 | Q180: 0 | R180: 0 | S180: 327325799.2 | T180: 0.2182171994
A181: 588 | C181: 0 | D181: 0 | E181: 0 | F181: 116014207.3 | G181: 87010655.47 | H181: 8286729.093 | I181: 116014207.3 | J181: 0 | K181: 0 | L181: 0 | M181: 0 | N181: 0 | O181: 0 | P181: 0 | Q181: 0 | R181: 0 | S181: 327325799.2 | T181: 0.2182171994
A182: 586 | C182: 0 | D182: 0 | E182: 0 | F182: 116014207.3 | G182: 87010655.47 | H182: 8286729.093 | I182: 116014207.3 | J182: 0 | K182: 0 | L182: 0 | M182: 0 | N182: 0 | O182: 0 | P182: 0 | Q182: 0 | R182: 0 | S182: 327325799.2 | T182: 0.2182171994
A183: 584 | C183: 0 | D183: 0 | E183: 0 | F183: 116014207.3 | G183: 87010655.47 | H183: 8286729.093 | I183: 116014207.3 | J183: 0 | K183: 0 | L183: 0 | M183: 0 | N183: 0 | O183: 0 | P183: 0 | Q183: 0 | R183: 0 | S183: 327325799.2 | T183: 0.2182171994
A184: 582 | C184: 0 | D184: 0 | E184: 0 | F184: 116014207.3 | G184: 87010655.47 | H184: 8286729.093 | I184: 116014207.3 | J184: 0 | K184: 0 | L184: 0 | M184: 0 | N184: 0 | O184: 0 | P184: 0 | Q184: 0 | R184: 0 | S184: 327325799.2 | T184: 0.2182171994
A185: 580 | C185: =IF($A185<=(C$12*1000), IF($A185>=(C$12*1000-C$18),C$20,0),0) -> 0 | D185: 0 | E185: 0 | F185: 116014207.3 | G185: 87010655.47 | H185: 8286729.093 | I185: 116014207.3 | J185: 0 | K185: 0 | L185: 0 | M185: 0 | N185: 0 | O185: 0 | P185: 0 | Q185: 0 | R185: 0 | S185: 327325799.2 | T185: 0.2182171994
A186: 578 | C186: 0 | D186: 0 | E186: 0 | F186: 116014207.3 | G186: 87010655.47 | H186: 8286729.093 | I186: 116014207.3 | J186: 0 | K186: 0 | L186: 0 | M186: 0 | N186: 0 | O186: 0 | P186: 0 | Q186: 0 | R186: 0 | S186: 327325799.2 | T186: 0.2182171994
A187: 576 | C187: 0 | D187: 0 | E187: 0 | F187: 116014207.3 | G187: 87010655.47 | H187: 8286729.093 | I187: 116014207.3 | J187: 0 | K187: 0 | L187: 0 | M187: 0 | N187: 0 | O187: 0 | P187: 0 | Q187: 0 | R187: 0 | S187: 327325799.2 | T187: 0.2182171994
A188: 574 | C188: 0 | D188: 0 | E188: 5800710.365 | F188: 116014207.3 | G188: 87010655.47 | H188: 8286729.093 | I188: 116014207.3 | J188: 0 | K188: 0 | L188: 0 | M188: 0 | N188: 0 | O188: 0 | P188: 0 | Q188: 0 | R188: 0 | S188: 333126509.5 | T188: 0.2220843397
A189: 572 | C189: 0 | D189: 0 | E189: 5800710.365 | F189: 116014207.3 | G189: 87010655.47 | H189: 8286729.093 | I189: 116014207.3 | J189: 0 | K189: 0 | L189: 0 | M189: 0 | N189: 0 | O189: 0 | P189: 0 | Q189: 0 | R189: 0 | S189: 333126509.5 | T189: 0.2220843397
A190: 570 | C190: 0 | D190: 0 | E190: 5800710.365 | F190: 116014207.3 | G190: 87010655.47 | H190: 8286729.093 | I190: 116014207.3 | J190: 0 | K190: 0 | L190: 0 | M190: 0 | N190: 0 | O190: 0 | P190: 0 | Q190: 0 | R190: 0 | S190: 333126509.5 | T190: 0.2220843397
A191: 568 | C191: 0 | D191: 0 | E191: 5800710.365 | F191: 116014207.3 | G191: 87010655.47 | H191: 8286729.093 | I191: 116014207.3 | J191: 0 | K191: 0 | L191: 0 | M191: 0 | N191: 0 | O191: 0 | P191: 0 | Q191: 0 | R191: 0 | S191: 333126509.5 | T191: 0.2220843397
A192: 566 | C192: 0 | D192: 0 | E192: 5800710.365 | F192: 116014207.3 | G192: 87010655.47 | H192: 8286729.093 | I192: 116014207.3 | J192: 0 | K192: 0 | L192: 0 | M192: 0 | N192: 0 | O192: 0 | P192: 0 | Q192: 0 | R192: 0 | S192: 333126509.5 | T192: 0.2220843397
A193: 564 | C193: 0 | D193: 0 | E193: 5800710.365 | F193: 116014207.3 | G193: 87010655.47 | H193: 8286729.093 | I193: 116014207.3 | J193: 0 | K193: 0 | L193: 0 | M193: 0 | N193: 0 | O193: 0 | P193: 0 | Q193: 0 | R193: 0 | S193: 333126509.5 | T193: 0.2220843397
A194: 562 | C194: 0 | D194: 0 | E194: 5800710.365 | F194: 116014207.3 | G194: 87010655.47 | H194: 8286729.093 | I194: 116014207.3 | J194: 0 | K194: 0 | L194: 0 | M194: 0 | N194: 0 | O194: 0 | P194: 0 | Q194: 0 | R194: 0 | S194: 333126509.5 | T194: 0.2220843397
A195: 560 | C195: =IF($A195<=(C$12*1000), IF($A195>=(C$12*1000-C$18),C$20,0),0) -> 0 | D195: 0 | E195: 5800710.365 | F195: 116014207.3 | G195: 87010655.47 | H195: 8286729.093 | I195: 116014207.3 | J195: 0 | K195: 0 | L195: 0 | M195: 0 | N195: 0 | O195: 0 | P195: 0 | Q195: 0 | R195: 0 | S195: 333126509.5 | T195: 0.2220843397
A196: 558 | C196: 0 | D196: 0 | E196: 5800710.365 | F196: 116014207.3 | G196: 87010655.47 | H196: 8286729.093 | I196: 116014207.3 | J196: 0 | K196: 0 | L196: 0 | M196: 0 | N196: 0 | O196: 0 | P196: 0 | Q196: 0 | R196: 0 | S196: 333126509.5 | T196: 0.2220843397
A197: 556 | C197: 0 | D197: 0 | E197: 5800710.365 | F197: 116014207.3 | G197: 87010655.47 | H197: 8286729.093 | I197: 116014207.3 | J197: 0 | K197: 0 | L197: 0 | M197: 0 | N197: 0 | O197: 0 | P197: 0 | Q197: 0 | R197: 0 | S197: 333126509.5 | T197: 0.2220843397
A198: 554 | C198: 0 | D198: 0 | E198: 5800710.365 | F198: 116014207.3 | G198: 87010655.47 | H198: 8286729.093 | I198: 116014207.3 | J198: 0 | K198: 0 | L198: 0 | M198: 0 | N198: 0 | O198: 0 | P198: 0 | Q198: 0 | R198: 0 | S198: 333126509.5 | T198: 0.2220843397
A199: 552 | C199: 0 | D199: 0 | E199: 5800710.365 | F199: 116014207.3 | G199: 87010655.47 | H199: 8286729.093 | I199: 116014207.3 | J199: 0 | K199: 0 | L199: 0 | M199: 0 | N199: 0 | O199: 0 | P199: 0 | Q199: 0 | R199: 0 | S199: 333126509.5 | T199: 0.2220843397
A200: 550 | C200: 0 | D200: 0 | E200: 5800710.365 | F200: 116014207.3 | G200: 87010655.47 | H200: 8286729.093 | I200: 116014207.3 | J200: 0 | K200: 0 | L200: 0 | M200: 0 | N200: 0 | O200: 0 | P200: 0 | Q200: 0 | R200: 0 | S200: 333126509.5 | T200: 0.2220843397
A201: 548 | C201: 0 | D201: 0 | E201: 5800710.365 | F201: 116014207.3 | G201: 87010655.47 | H201: 8286729.093 | I201: 116014207.3 | J201: 0 | K201: 0 | L201: 0 | M201: 0 | N201: 0 | O201: 0 | P201: 0 | Q201: 0 | R201: 0 | S201: 333126509.5 | T201: 0.2220843397
A202: 546 | C202: 0 | D202: 0 | E202: 5800710.365 | F202: 116014207.3 | G202: 87010655.47 | H202: 8286729.093 | I202: 0 | J202: 0 | K202: 0 | L202: 0 | M202: 0 | N202: 0 | O202: 0 | P202: 0 | Q202: 0 | R202: 0 | S202: 217112302.2 | T202: 0.1447415348
... 23 more rows
